fUST/lending_fUST_20250206
["ID","MTS","AMOUNT","RATE_DAILY","PERIOD"]
[351855125,1738822067299,-500.0,0.00013972,2]
[351855126,1738822067323,-813.82,0.00013972,2]
[351855127,1738822067346,-500.0,0.00013972,2]
[351855128,1738822067368,-351.16877617,0.00013972,2]
[351855129,1738822067390,-500.0,0.00013972,2]
[351855130,1738822067412,-500.0,0.00013972,2]
[351855131,1738822067434,-844.65,0.00013972,2]
[351855132,1738822067457,-151.0,0.00013972,2]
[351855133,1738822067479,-151.0,0.00013972,2]
[351855134,1738822067501,-151.0,0.00013972,2]
[351855135,1738822067523,-151.0,0.00013972,2]
[351855136,1738822067545,-2202.19,0.00013972,2]
[351855137,1738822067568,-500.0,0.00013972,2]
[351855138,1738822067591,-210.01699176,0.00013972,2]
[351855139,1738822067615,-689.2,0.00013972,2]
[351855140,1738822067637,-500.0,0.00013972,2]
[351855141,1738822067660,-500.0,0.00013972,2]
[351855142,1738822067682,-1474.55,0.00013972,2]
[351855143,1738822067705,-500.0,0.00013972,2]
[351855144,1738822067729,-500.0,0.00013972,2]
[351855145,1738822067752,-500.21,0.00013972,2]
[351855146,1738822067774,-500.0,0.00013972,2]
[351855147,1738822067797,-500.0,0.00013972,2]
[351855148,1738822067818,-500.0,0.00013972,2]
[351855149,1738822067841,-500.0,0.00013972,2]
[351855150,1738822067867,-626.0,0.00013972,2]
[351855151,1738822067889,-500.0,0.00013972,2]
[351855152,1738822067911,-500.0,0.00013972,2]
[351855153,1738822067934,-500.0,0.00013972,2]
[351855154,1738822067957,-500.0,0.00013972,2]
[351855155,1738822067979,-500.0,0.00013972,2]
[351855156,1738822068001,-151.0,0.00013972,2]
[351855157,1738822068023,-151.0,0.00013972,2]
[351855158,1738822068046,-2204.91,0.00013972,2]
[351855159,1738822068069,-500.0,0.00013972,2]
[351855160,1738822068107,-639.59,0.00013972,2]
[351855161,1738822068133,-151.0,0.00013972,2]
[351855162,1738822068158,-500.0,0.00013972,2]
[351855163,1738822068182,-151.0,0.00013972,2]
[351855164,1738822068208,-626.84,0.00013972,2]
[351855165,1738822068233,-500.0,0.00013972,2]
[351855166,1738822068258,-2316.36,0.00013972,2]
[351855167,1738822068282,-1078.27,0.00013972,2]
[351855168,1738822068307,-500.0,0.00013972,2]
[351855169,1738822068331,-500.0,0.00013972,2]
[351855170,1738822068356,-1179.04,0.00013972,2]
[351855171,1738822068379,-608.57,0.00013972,2]
[351855172,1738822068404,-1027.28,0.00013972,2]
[351855173,1738822068428,-659.01,0.00013972,2]
[351855174,1738822068454,-500.0,0.00013972,2]
[351855175,1738822068478,-1000.1,0.00013972,2]
[351855176,1738822068502,-1768.12,0.00013972,2]
[351855177,1738822068528,-500.0,0.00013972,2]
[351855178,1738822068553,-500.0,0.00013972,2]
[351855179,1738822068578,-1164.33,0.00013972,2]
[351855180,1738822068602,-744.82,0.00013972,2]
[351855181,1738822068625,-603.4,0.00013972,2]
[351855182,1738822068648,-649.163296,0.00013972,2]
[351855183,1738822068672,-649.163296,0.00013972,2]
[351855184,1738822068695,-649.163296,0.00013972,2]
[351855185,1738822068718,-649.163296,0.00013972,2]
[351855186,1738822068743,-541.99,0.00013972,2]
[351855187,1738822068769,-508.95,0.00013972,2]
[351855188,1738822068793,-3058.07,0.00013972,2]
[351855189,1738822068816,-5993.42,0.00013972,2]
[351855190,1738822068842,-500.0,0.00013972,2]
[351855191,1738822068869,-500.0,0.00013972,2]
[351855192,1738822068892,-500.0,0.00013972,2]
[351855193,1738822068916,-500.0,0.00013972,2]
[351855194,1738822068943,-28430.8,0.00013972,2]
[351855195,1738822068966,-829.82,0.00013972,2]
[351855196,1738822068991,-2179.51,0.00013972,2]
[351855197,1738822069014,-305.51992558,0.00013972,2]
[351855198,1738822069037,-500.0,0.00013972,2]
[351855199,1738822069065,-223.298621,0.00013972,2]
[351855200,1738822069091,-223.298621,0.00013972,2]
[351855201,1738822069116,-500.0,0.00013972,2]
[351855202,1738822069139,-500.0,0.00013972,2]
[351855203,1738822069164,-934.47,0.00013972,2]
[351855204,1738822069187,-150.08,0.00013972,2]
[351855205,1738822069210,-150.1592151,0.00013972,2]
[351855206,1738822069233,-223.298621,0.00013972,2]
[351855207,1738822069257,-150.08,0.00013972,2]
[351855208,1738822069282,-223.298621,0.00013972,2]
[351855209,1738822069307,-500.0,0.00013972,2]
[351855210,1738822069329,-150.08,0.00013972,2]
[351855211,1738822069352,-500.0,0.00013972,2]
[351855212,1738822069375,-150.08,0.00013972,2]
[351855213,1738822069398,-233.24639152,0.00013972,2]
[351855214,1738822069422,-151.0,0.00013972,2]
[351855215,1738822069446,-558.2,0.00013972,2]
[351855216,1738822069469,-4190.88,0.00013972,2]
[351855217,1738822069492,-2052.11254028,0.00013972,2]
[351855218,1738822070049,-1160.64,0.00013835,2]
[351855219,1738822070070,-1260.70745972,0.00013972,2]
[351855220,1738822070092,-671.71,0.00013972,2]
[351855221,1738822070112,-800.03,0.00013972,2]
[351855222,1738822070133,-500.0,0.00013972,2]
[351855223,1738822070153,-500.0,0.00013972,2]
[351855224,1738822070187,-151.0,0.00013972,2]
[351855225,1738822070211,-1931.42,0.00013972,2]
[351855226,1738822070232,-2202.72,0.00013972,2]
[351855227,1738822070254,-1018.89,0.00013972,2]
[351855228,1738822070275,-1566.05,0.00013972,2]
[351855229,1738822070296,-561.73,0.00013972,2]
[351855230,1738822070317,-513.75,0.00013972,2]
[351855231,1738822070339,-500.0,0.00013972,2]
[351855232,1738822070361,-1881.69,0.00013972,2]
[351855233,1738822070383,-605.36,0.00013972,2]
[351855234,1738822070405,-5123.3,0.00013972,2]
[351855235,1738822070427,-725.61,0.00013972,2]
[351855236,1738822070450,-927.78,0.00013972,2]
[351855237,1738822070473,-1271.07,0.00013972,2]
[351855238,1738822070495,-500.0,0.00013972,2]
[351855239,1738822070518,-1862.54,0.00013972,2]
[351855240,1738822070542,-740.24,0.00013972,2]
[351855241,1738822070568,-77490.92,0.00013972,2]
[351855242,1738822070589,-1350.03,0.00013972,2]
[351855243,1738822070611,-10825.23,0.00013972,2]
[351855244,1738822070631,-1282.71,0.00013972,2]
[351855245,1738822070652,-500.0,0.00013972,2]
[351855246,1738822070675,-500.0,0.00013972,2]
[351855247,1738822070697,-3871.55,0.00013972,2]
[351855248,1738822070720,-882.38,0.00013972,2]
[351855249,1738822070742,-632.56,0.00013972,2]
[351855250,1738822070764,-500.0,0.00013972,2]
[351855251,1738822070786,-500.0,0.00013972,2]
[351855252,1738822070807,-500.0,0.00013972,2]
[351855253,1738822070829,-1289.03,0.00013972,2]
[351855254,1738822070854,-2302.96,0.00013972,2]
[351855255,1738822070874,-151.0,0.00013972,2]
[351855256,1738822070897,-500.0,0.00013972,2]
[351855257,1738822070925,-609.62,0.00013972,2]
[351855258,1738822070949,-500.0,0.00013972,2]
[351855259,1738822070970,-863.89,0.00013972,2]
[351855260,1738822070992,-500.0,0.00013972,2]
[351855261,1738822071014,-500.0,0.00013972,2]
[351855262,1738822071036,-500.0,0.00013972,2]
[351855263,1738822071056,-150.08,0.00013972,2]
[351855264,1738822071076,-150.08,0.00013972,2]
[351855265,1738822071098,-500.0,0.00013972,2]
[351855266,1738822071119,-500.0,0.00013972,2]
[351855267,1738822071145,-150.08,0.00013972,2]
[351855268,1738822071166,-1298.58,0.00013972,2]
[351855269,1738822071187,-500.0,0.00013972,2]
[351855270,1738822071208,-150.08,0.00013972,2]
[351855271,1738822071231,-1102.01,0.00013972,2]
[351855272,1738822071253,-791.49,0.00013972,2]
[351855273,1738822071274,-500.0,0.00013972,2]
[351855274,1738822071299,-907.0,0.00013972,2]
[351855275,1738822071321,-549.43,0.00013972,2]
[351855276,1738822071344,-501.99,0.00013972,2]
[351855277,1738822071365,-500.0,0.00013972,2]
[351855278,1738822071389,-6308.61,0.00013972,2]
[351855279,1738822071413,-500.0,0.00013972,2]
[351855280,1738822071436,-172.032232,0.00013972,2]
[351855281,1738822071461,-150.08,0.00013972,2]
[351855282,1738822071482,-500.0,0.00013972,2]
[351855283,1738822071503,-172.032232,0.00013972,2]
[351855284,1738822071526,-500.0,0.00013972,2]
[351855285,1738822071548,-8269.95,0.00013972,2]
[351855286,1738822071570,-500.0,0.00013972,2]
[351855287,1738822071592,-3411.99,0.00013972,2]
[351855288,1738822071792,-500.0,0.00013972,2]
[351855289,1738822071815,-27098.26,0.00013972,2]
[351855290,1738822071840,-749.3,0.00013972,2]
[351855291,1738822071867,-2587.41,0.00013972,2]
[351855292,1738822071890,-2174.68,0.00013972,2]
[351855293,1738822071911,-151.0,0.00013972,2]
[351855294,1738822071935,-500.0,0.00013972,2]
[351855295,1738822071956,-197.009496,0.00013972,2]
[351855296,1738822071976,-900.15,0.00013972,2]
[351855297,1738822072002,-197.009496,0.00013972,2]
[351855298,1738822072024,-500.0,0.00013972,2]
[351855299,1738822072045,-500.0,0.00013972,2]
[351855300,1738822072065,-500.0,0.00013972,2]
[351855301,1738822072086,-817.5,0.00013972,2]
[351855302,1738822072107,-689.49,0.00013972,2]
[351855303,1738822072128,-500.0,0.00013972,2]
[351855304,1738822072150,-505.120086,0.00013972,2]
[351855305,1738822072172,-2071.89,0.00013972,2]
[351855306,1738822072194,-500.0,0.00013972,2]
[351855307,1738822072215,-2225.74,0.00013972,2]
[351855308,1738822072236,-2453.54,0.00013972,2]
[351855309,1738822072259,-1317.24,0.00013972,2]
[351855310,1738822072281,-670.63,0.00013972,2]
[351855311,1738822072302,-500.0,0.00013972,2]
[351855312,1738822072325,-500.0,0.00013972,2]
[351855313,1738822072346,-740.08,0.00013972,2]
[351855314,1738822072368,-3501.62,0.00013972,2]
[351855315,1738822072391,-570.58044414,0.00013972,2]
[351855316,1738822072415,-509.17,0.00013972,2]
[351855317,1738822072438,-500.0,0.00013972,2]
[351855318,1738822072460,-651.59,0.00013972,2]
[351855319,1738822072483,-218.04473,0.00013972,2]
[351855320,1738822072508,-500.0,0.00013972,2]
[351855321,1738822072529,-500.0,0.00013972,2]
[351855322,1738822072553,-218.04473,0.00013972,2]
[351855323,1738822072574,-500.0,0.00013972,2]
[351855324,1738822072596,-6536.28,0.00013972,2]
[351855325,1738822072619,-913.67,0.00013972,2]
[351855326,1738822072641,-500.0,0.00013972,2]
[351855327,1738822072663,-500.0,0.00013972,2]
[351855328,1738822072684,-512.50320037,0.00013972,2]
[351855329,1738822072707,-4003.24,0.00013972,2]
[351855330,1738822072730,-500.0,0.00013972,2]
[351855331,1738822072754,-990.46,0.00013972,2]
[351855332,1738822072775,-151.0,0.00013972,2]
[351855333,1738822072795,-151.0,0.00013972,2]
[351855334,1738822072816,-151.0,0.00013972,2]
[351855335,1738822072837,-151.0,0.00013972,2]
[351855336,1738822072862,-151.0,0.00013972,2]
[351855337,1738822072883,-151.0,0.00013972,2]
[351855338,1738822072906,-151.0,0.00013972,2]
[351855339,1738822072929,-151.0,0.00013972,2]
[351855340,1738822072951,-151.0,0.00013972,2]
[351855341,1738822072972,-151.0,0.00013972,2]
[351855342,1738822072994,-151.0,0.00013972,2]
[351855343,1738822073016,-151.0,0.00013972,2]
[351855344,1738822073037,-2124.74,0.00013972,2]
[351855345,1738822073058,-151.0,0.00013972,2]
[351855346,1738822073080,-4141.69,0.00013972,2]
[351855347,1738822073102,-151.0,0.00013972,2]
[351855348,1738822073124,-151.0,0.00013972,2]
[351855349,1738822073146,-151.0,0.00013972,2]
[351855350,1738822073169,-1037.13,0.00013972,2]
[351855351,1738822073190,-500.0,0.00013972,2]
[351855352,1738822073211,-151.0,0.00013972,2]
[351855353,1738822073232,-151.0,0.00013972,2]
[351855354,1738822073254,-1160.64,0.00013972,2]
[351855355,1738822073274,-500.0,0.00013973,2]
[351855356,1738822073295,-500.0,0.00013973,2]
[351855357,1738822073320,-500.4205007,0.00013973,2]
[351855358,1738822073341,-500.0,0.00013973,2]
[351855359,1738822073362,-500.0,0.00013973,2]
[351855360,1738822073383,-504.25587907,0.00013973,2]
[351855361,1738822073406,-284.76821747,0.00013973,2]
[351855362,1738822073426,-500.0,0.00013973,2]
[351855363,1738822073445,-504.03928069,0.00013973,2]
[351855364,1738822073470,-502.11735849,0.00013973,2]
[351855365,1738822073490,-152.61042305,0.00013973,2]
[351855366,1738822073510,-500.0,0.00013973,2]
[351855367,1738822073530,-161.7423215,0.00013973,2]
[351855368,1738822073551,-400.0,0.00013973,2]
[351855369,1738822073572,-201.36,0.00013985,2]
[351855370,1738822073594,-26000.0,0.00014,2]
[351855371,1738822073618,-294.68520104,0.00014,2]
[351855372,1738822073639,-172.032232,0.00014,2]
[351855373,1738822073661,-172.032232,0.00014,2]
[351855374,1738822073685,-151.0,0.00014,2]
[351855375,1738822073707,-218.04473,0.00014,2]
[351855376,1738822073728,-218.04473,0.00014,2]
[351855377,1738822073749,-10515.64891072,0.00014,2]
[351855378,1738822073770,-503.00086132,0.00014,2]
[351855379,1738822073792,-2614.0,0.00014,2]
[351855380,1738822073812,-266.6021513,0.00014009,2]
[351855381,1738822073833,-224.31,0.00014032,2]
[351855382,1738822073857,-160.0,0.00014055,5]
[351855383,1738822074000,-311.4533,0.000141,2]
[351855384,1738822074023,-311.4533,0.000141,2]
[351855385,1738822074043,-854.0,0.000141,5]
[351855386,1738822074066,-1681.5171615,0.00014104,2]
[351855387,1738822074088,-500.0,0.00014109,2]
[351855388,1738822074111,-500.0,0.00014109,2]
[351855389,1738822074134,-500.0,0.00014109,2]
[351855390,1738822074155,-305.08325812,0.00014109,2]
[351855391,1738822074177,-151.0,0.00014109,2]
[351855392,1738822074198,-204.429393,0.00014109,2]
[351855393,1738822074220,-1109.9,0.00014109,2]
[351855394,1738822074241,-500.0,0.00014109,2]
[351855395,1738822074262,-151.0,0.00014109,2]
[351855396,1738822074283,-151.0,0.00014109,2]
[351855397,1738822074304,-500.0,0.00014109,2]
[351855398,1738822074325,-500.0,0.00014109,2]
[351855399,1738822074347,-500.0,0.00014109,2]
[351855400,1738822074368,-500.0,0.00014109,2]
[351855401,1738822074391,-500.0,0.00014109,2]
[351855402,1738822074412,-500.0,0.00014109,2]
[351855403,1738822074433,-588.76,0.00014109,2]
[351855404,1738822074458,-500.0,0.00014109,2]
[351855405,1738822074481,-606.27,0.00014109,2]
[351855406,1738822074503,-500.0,0.00014109,2]
[351855407,1738822074527,-500.0,0.00014109,2]
[351855408,1738822074550,-500.0,0.00014109,2]
[351855409,1738822074570,-502.2549291,0.00014109,2]
[351855410,1738822074592,-849.0,0.00014109,2]
[351855411,1738822074613,-500.0,0.00014109,2]
[351855412,1738822074635,-500.0,0.00014109,2]
[351855413,1738822074658,-191.07663675,0.00014109,2]
[351855414,1738822074680,-500.0,0.00014109,2]
[351855415,1738822074702,-1095.5,0.00014109,2]
[351855416,1738822074724,-871.28,0.00014109,2]
[351855417,1738822074745,-711.69,0.00014109,2]
[351855418,1738822074768,-500.0,0.00014109,2]
[351855419,1738822074788,-564.3748124,0.00014109,2]
[351855420,1738822074808,-500.0,0.00014109,2]
[351855421,1738822074828,-500.0,0.00014109,2]
[351855422,1738822074852,-500.0,0.00014109,2]
[351855423,1738822074872,-522.91,0.00014109,2]
[351855424,1738822074894,-592.13,0.00014109,2]
[351855425,1738822074915,-500.0,0.00014109,2]
[351855426,1738822074937,-513.98,0.00014109,2]
[351855427,1738822074958,-151.0,0.00014109,2]
[351855428,1738822074980,-151.0,0.00014109,2]
[351855429,1738822075000,-519.58053829,0.00014109,2]
[351855430,1738822075021,-500.0,0.00014109,2]
[351855431,1738822075058,-500.0,0.00014109,2]
[351855432,1738822075103,-500.0,0.00014109,2]
[351855433,1738822075149,-500.0,0.00014109,2]
[351855434,1738822075193,-513.21,0.00014109,2]
[351855435,1738822075230,-581.43,0.00014109,2]
[351855436,1738822075254,-666.88,0.00014109,2]
[351855437,1738822075276,-151.0,0.00014109,2]
[351855438,1738822075296,-151.0,0.00014109,2]
[351855439,1738822075317,-188.32694769,0.00014109,2]
[351855440,1738822075338,-884.66,0.00014109,2]
[351855441,1738822075359,-500.0,0.00014109,2]
[351855442,1738822075381,-494.75460508,0.00014109,2]
[351855443,1738822075401,-1233.9,0.00014109,2]
[351855444,1738822075421,-151.0,0.00014109,2]
[351855445,1738822075441,-151.0,0.00014109,2]
[351855446,1738822075461,-373.35901399,0.00014109,2]
[351855447,1738822075482,-151.0,0.00014109,2]
[351855448,1738822075502,-191.745256,0.00014109,2]
[351855449,1738822075523,-151.0,0.00014109,2]
[351855450,1738822075543,-151.0,0.00014109,2]
[351855451,1738822075564,-500.0,0.00014109,2]
[351855452,1738822075585,-629.07,0.00014109,2]
[351855453,1738822075606,-851.34,0.00014109,2]
[351855454,1738822075627,-583.65,0.00014109,2]
[351855455,1738822075648,-500.0,0.00014109,2]
[351855456,1738822075668,-500.0,0.00014109,2]
[351855457,1738822075688,-500.0,0.00014109,2]
[351855458,1738822075709,-563.95,0.00014109,2]
[351855459,1738822075730,-500.0,0.00014109,2]
[351855460,1738822075751,-500.0,0.00014109,2]
[351855461,1738822075772,-500.0,0.00014109,2]
[351855462,1738822075792,-500.0,0.00014109,2]
[351855463,1738822075812,-500.0,0.00014109,2]
[351855464,1738822075832,-500.0,0.00014109,2]
[351855465,1738822075858,-500.0,0.00014109,2]
[351855466,1738822075878,-151.0,0.00014109,2]
[351855467,1738822075898,-151.0,0.00014109,2]
[351855468,1738822075918,-500.0,0.00014109,2]
[351855469,1738822075941,-500.0,0.00014109,2]
[351855470,1738822075961,-160.66641,0.00014109,2]
[351855471,1738822075982,-605.28,0.00014109,2]
[351855472,1738822076002,-500.0,0.00014109,2]
[351855473,1738822076022,-500.0,0.00014109,2]
[351855474,1738822076153,-500.0,0.00014109,2]
[351855475,1738822076176,-500.0,0.00014109,2]
[351855476,1738822076198,-500.0,0.00014109,2]
[351855477,1738822076220,-927.14,0.00014109,2]
[351855478,1738822076242,-570.19,0.00014109,2]
[351855479,1738822076264,-883.74,0.00014109,2]
[351855480,1738822076285,-500.0,0.00014109,2]
[351855481,1738822076307,-768.5,0.00014109,2]
[351855482,1738822076330,-636.61,0.00014109,2]
[351855483,1738822076352,-500.0,0.00014109,2]
[351855484,1738822076373,-710.94,0.00014109,2]
[351855485,1738822076393,-676.5,0.00014109,2]
[351855486,1738822076415,-500.0,0.00014109,2]
[351855487,1738822076439,-513.73784169,0.00014109,2]
[351855488,1738822076462,-500.0,0.00014109,2]
[351855489,1738822076485,-500.0,0.00014109,2]
[351855490,1738822076509,-1357.53,0.00014109,2]
[351855491,1738822076531,-596.81,0.00014109,2]
[351855492,1738822076553,-500.0,0.00014109,2]
[351855493,1738822076574,-718.41,0.00014109,2]
[351855494,1738822076596,-500.0,0.00014109,2]
[351855495,1738822076616,-500.0,0.00014109,2]
[351855496,1738822076639,-507.39221855,0.00014109,2]
[351855497,1738822076660,-500.0,0.00014109,2]
[351855498,1738822076680,-500.0,0.00014109,2]
[351855499,1738822076700,-151.0,0.00014109,2]
[351855500,1738822076722,-239.01051,0.00014109,2]
[351855501,1738822076744,-500.0,0.00014109,2]
[351855502,1738822076764,-500.0,0.00014109,2]
[351855503,1738822076784,-500.0,0.00014109,2]
[351855504,1738822076806,-500.0,0.00014109,2]
[351855505,1738822076826,-500.0,0.00014109,2]
[351855506,1738822076851,-1198.65,0.00014109,2]
[351855507,1738822076871,-500.0,0.00014109,2]
[351855508,1738822076893,-500.0,0.00014109,2]
[351855509,1738822076915,-686.86,0.00014109,2]
[351855510,1738822076939,-500.0,0.00014109,2]
[351855511,1738822076960,-500.0,0.00014109,2]
[351855512,1738822076983,-627.32,0.00014109,2]
[351855513,1738822077005,-503.64,0.00014109,2]
[351855514,1738822077028,-500.0,0.00014109,2]
[351855515,1738822077050,-962.59,0.00014109,2]
[351855516,1738822077081,-500.0,0.00014109,2]
[351855517,1738822077107,-500.0,0.00014109,2]
[351855518,1738822077129,-684.0,0.00014109,2]
[351855519,1738822077150,-500.0,0.00014109,2]
[351855520,1738822077171,-500.0,0.00014109,2]
[351855521,1738822077192,-500.0,0.00014109,2]
[351855522,1738822077214,-1220.69,0.00014109,2]
[351855523,1738822077236,-558.88805911,0.00014109,2]
[351855524,1738822077258,-500.0,0.00014109,2]
[351855525,1738822077279,-664.19,0.00014109,2]
[351855526,1738822077300,-603.78,0.00014109,2]
[351855527,1738822077321,-500.0,0.00014109,2]
[351855528,1738822077344,-151.0,0.00014109,2]
[351855529,1738822077366,-500.0,0.00014109,2]
[351855530,1738822077387,-500.0,0.00014109,2]
[351855531,1738822077408,-929.79,0.00014109,2]
[351855532,1738822077432,-500.0,0.00014109,2]
[351855533,1738822077453,-503.26340398,0.00014109,2]
[351855534,1738822077474,-500.0,0.00014109,2]
[351855535,1738822077495,-594.09,0.00014109,2]
[351855536,1738822077514,-858.78,0.00014109,2]
[351855537,1738822077535,-2224.99,0.00014109,2]
[351855538,1738822077555,-500.0,0.00014109,2]
[351855539,1738822077576,-813.82,0.00014109,2]
[351855540,1738822077598,-500.0,0.00014109,2]
[351855541,1738822077619,-500.0,0.00014109,2]
[351855542,1738822077641,-500.0,0.00014109,2]
[351855543,1738822077663,-844.65,0.00014109,2]
[351855544,1738822077684,-151.0,0.00014109,2]
[351855545,1738822077704,-151.0,0.00014109,2]
[351855546,1738822077726,-151.0,0.00014109,2]
[351855547,1738822077746,-151.0,0.00014109,2]
[351855548,1738822077767,-2202.19,0.00014109,2]
[351855549,1738822077789,-151.0,0.00014109,2]
[351855550,1738822077812,-500.0,0.00014109,2]
[351855551,1738822077833,-689.2,0.00014109,2]
[351855552,1738822077856,-500.0,0.00014109,2]
[351855553,1738822077876,-500.0,0.00014109,2]
[351855554,1738822077898,-1474.55,0.00014109,2]
[351855555,1738822077918,-500.0,0.00014109,2]
[351855556,1738822077942,-500.0,0.00014109,2]
[351855557,1738822077962,-500.21,0.00014109,2]
[351855558,1738822077983,-500.0,0.00014109,2]
[351855559,1738822078004,-500.0,0.00014109,2]
[351855560,1738822078025,-500.0,0.00014109,2]
[351855561,1738822078046,-535.66057709,0.00014109,2]
[351855562,1738822078180,-626.0,0.00014109,2]
[351855563,1738822078207,-468.54316314,0.00014109,2]
[351855564,1738822078257,-500.0,0.00014109,2]
[351855565,1738822078304,-500.0,0.00014109,2]
[351855566,1738822078353,-500.0,0.00014109,2]
[351855567,1738822078398,-151.0,0.00014109,2]
[351855568,1738822078420,-2204.91,0.00014109,2]
[351855569,1738822078440,-151.0,0.00014109,2]
[351855570,1738822078461,-500.0,0.00014109,2]
[351855571,1738822078481,-639.59,0.00014109,2]
[351855572,1738822078502,-500.0,0.00014109,2]
[351855573,1738822078522,-151.0,0.00014109,2]
[351855574,1738822078542,-626.84,0.00014109,2]
[351855575,1738822078562,-151.0,0.00014109,2]
[351855576,1738822078582,-500.0,0.00014109,2]
[351855577,1738822078604,-2316.36,0.00014109,2]
[351855578,1738822078625,-1078.27,0.00014109,2]
[351855579,1738822078645,-500.0,0.00014109,2]
[351855580,1738822078664,-500.0,0.00014109,2]
[351855581,1738822078684,-1179.04,0.00014109,2]
[351855582,1738822078707,-608.57,0.00014109,2]
[351855583,1738822078727,-1027.28,0.00014109,2]
[351855584,1738822078747,-659.01,0.00014109,2]
[351855585,1738822078769,-500.0,0.00014109,2]
[351855586,1738822078789,-1000.1,0.00014109,2]
[351855587,1738822078810,-500.0,0.00014109,2]
[351855588,1738822078831,-500.0,0.00014109,2]
[351855589,1738822078856,-1164.33,0.00014109,2]
[351855590,1738822078876,-744.82,0.00014109,2]
[351855591,1738822078898,-603.4,0.00014109,2]
[351855592,1738822078919,-649.163296,0.00014109,2]
[351855593,1738822078943,-649.163296,0.00014109,2]
[351855594,1738822078964,-649.163296,0.00014109,2]
[351855595,1738822078984,-541.99,0.00014109,2]
[351855596,1738822079005,-649.163296,0.00014109,2]
[351855597,1738822079025,-508.95,0.00014109,2]
[351855598,1738822079047,-3058.07,0.00014109,2]
[351855599,1738822079067,-5993.42,0.00014109,2]
[351855600,1738822079088,-500.0,0.00014109,2]
[351855601,1738822079109,-500.0,0.00014109,2]
[351855602,1738822079128,-500.0,0.00014109,2]
[351855603,1738822079148,-500.0,0.00014109,2]
[351855604,1738822079169,-28430.8,0.00014109,2]
[351855605,1738822079210,-829.82,0.00014109,2]
[351855606,1738822079249,-2179.51,0.00014109,2]
[351855607,1738822079289,-500.0,0.00014109,2]
[351855608,1738822079327,-223.298621,0.00014109,2]
[351855609,1738822079358,-223.298621,0.00014109,2]
[351855610,1738822079396,-500.0,0.00014109,2]
[351855611,1738822079430,-934.47,0.00014109,2]
[351855612,1738822079466,-223.298621,0.00014109,2]
[351855613,1738822079498,-223.298621,0.00014109,2]
[351855614,1738822079529,-500.0,0.00014109,2]
[351855615,1738822079558,-500.0,0.00014109,2]
[351855616,1738822079588,-151.0,0.00014109,2]
[351855617,1738822079621,-558.2,0.00014109,2]
[351855618,1738822079651,-151.0,0.00014109,2]
[351855619,1738822079682,-4190.88,0.00014109,2]
[351855620,1738822079713,-3312.82,0.00014109,2]
[351855621,1738822079742,-671.71,0.00014109,2]
[351855622,1738822079773,-800.03,0.00014109,2]
[351855623,1738822079803,-500.0,0.00014109,2]
[351855624,1738822079836,-500.0,0.00014109,2]